bitfinex/quotes_SOLUSD_20250118
["timestamp","ask_amount","ask_price","bid_price","bid_amount"]
[1737166036397,16.11236288,218.48,218.45,3.9]
[1737166036693,16.11236288,218.48,218.43,3.9]
[1737166037393,16.11236288,218.48,218.41,0.063]
[1737166037592,16.11236288,218.48,218.43,3.9]
[1737166037810,38.99766288,218.48,218.41,0.063]
[1737166037985,131.05247459,218.48,218.41,0.063]
[1737166038291,138.21836327,218.48,218.41,0.063]
[1737166038682,7.16588868,218.46,218.41,0.063]
[1737166039400,4.5783,218.42,218.41,0.063]
[1737166040400,4.5781,218.43,218.41,0.063]
[1737166042277,20.0,218.42,218.41,0.063]
[1737166043400,24.5783,218.42,218.41,0.063]
[1737166046500,24.5783,218.42,218.41,0.0001]
[1737166046678,20.0,218.39,218.34,0.063]
[1737166046884,20.0,218.39,218.34,3.963]
[1737166047601,83.0,218.37,218.31,3.9]
[1737166047790,83.0,218.37,218.3,3.9]
[1737166048389,29.05481171,218.39,218.3,3.9]
[1737166048390,20.0,218.39,218.3,3.9]
[1737166048793,16.027,218.38,218.27,0.68710102]
[1737166048993,16.027,218.38,218.28,3.9]
[1737166049196,16.027,218.38,218.29,3.9]
[1737166049395,0.08965283,218.3,218.29,3.9]
[1737166051005,4.67045283,218.3,218.29,3.9]
[1737166057394,4.67045283,218.3,218.25,80.4298]
[1737166057604,4.67045283,218.3,218.26,4.58711449]
[1737166059106,4.67045283,218.3,218.26,3.9]
[1737166061619,4.67045283,218.3,218.26,3.963]
[1737166064318,4.67045283,218.3,218.27,3.9]
[1737166067122,4.67045283,218.3,218.26,0.063]
[1737166067321,4.67045283,218.3,218.28,3.9]
[1737166068722,4.67045283,218.3,218.29,3.9]
[1737166069401,16.0307,218.33,218.29,3.9]
[1737166069601,0.08738414,218.3,218.29,3.9]
[1737166072140,4.66818414,218.3,218.29,3.9]
[1737166072806,4.66818414,218.3,218.19,81.4505]
[1737166073006,16.12028414,218.3,218.2,3.9]
[1737166074207,16.15028414,218.3,218.2,3.9]
[1737166075129,16.15028414,218.3,218.19,81.4505]
[1737166075340,16.15028414,218.3,218.2,3.9]
[1737166075503,16.15028414,218.3,218.21,3.9]
[1737166077705,16.15028414,218.3,218.22,3.9]
[1737166078899,22.74832918,218.3,218.22,3.9]
[1737166079829,22.74832918,218.3,218.19,79.9276]
[1737166080043,22.74832918,218.3,218.2,3.9]
[1737166081701,20.0,218.27,218.2,3.9]
[1737166082526,20.0,218.27,218.19,0.063]
[1737166082722,20.0,218.27,218.2,3.9]
[1737166084032,4.5816,218.26,218.2,3.9]
[1737166084328,16.0358,218.26,218.2,3.9]
[1737166084715,16.0358,218.26,218.19,0.063]
[1737166085025,16.0358,218.26,218.2,3.9]
[1737166085432,16.0358,218.26,218.2,3.963]
[1737166088105,20.0,218.23,218.2,0.063]
[1737166088304,20.0,218.23,218.19,0.063]
[1737166089621,0.0832637,218.2,218.19,0.063]
[1737166090012,4.6661637,218.2,218.19,0.063]
[1737166090217,24.6661637,218.2,218.19,0.0001]
[1737166091512,4.6661637,218.2,218.07,224.413]
[1737166091719,16.1234637,218.2,218.08,3.9]
[1737166093211,8.1184,218.19,218.09,3.9]
[1737166094929,8.1184,218.19,218.1,3.9]
[1737166095737,16.0417,218.18,218.1,3.9]
[1737166096929,16.0417,218.18,218.1,3.963]
[1737166098040,16.0417,218.18,218.1,0.063]
[1737166098224,16.0417,218.18,218.11,3.9]
[1737166099737,38.9585,218.18,218.11,3.9]
[1737166102337,38.9585,218.18,218.1,0.063]
[1737166102536,45.55654504,218.18,218.1,3.963]
[1737166102722,45.55654504,218.18,218.1,0.063]
[1737166105928,38.9585,218.18,218.1,0.063]
[1737166107843,16.0417,218.18,218.1,0.063]
[1737166108239,4.5833,218.18,218.1,0.063]
[1737166108545,4.5833,218.18,218.11,7.77037297]
[1737166109139,4.6131,218.19,218.11,7.77037297]
[1737166109343,4.6131,218.19,218.11,0.68752548]
[1737166109651,0.08352382,218.12,218.11,0.68752548]
[1737166110153,0.08352382,218.12,218.11,138.98752548]
[1737166110363,0.08352382,218.12,218.11,138.3]
[1737166114960,0.08352382,218.12,218.1,138.363]
[1737166115138,0.08352382,218.12,218.11,0.68751772]
[1737166118258,0.08352382,218.12,218.11,4.58751772]
[1737166121958,0.08352382,218.12,218.11,0.68751772]
[1737166122162,4.66812382,218.12,218.1,0.063]
[1737166122344,4.66812382,218.12,218.11,3.9]
[1737166129467,16.0424,218.17,218.11,3.9]
[1737166129641,0.08950604,218.12,218.11,3.9]
[1737166131760,4.67410604,218.12,218.11,3.9]
[1737166135151,3.91200604,218.12,218.11,3.9]
[1737166135345,3.94200604,218.12,218.11,3.9]
[1737166137890,0.03,218.12,218.11,3.9]
[1737166142173,0.03,218.12,218.1,0.063]
[1737166142357,0.03,218.12,218.11,3.9]
[1737166147376,0.03,218.12,218.1,0.7505947]
[1737166147573,0.03,218.12,218.11,3.9]
[1737166148476,0.03,218.12,218.11,3.963]
[1737166150388,0.03,218.12,218.11,0.063]
[1737166150584,0.03,218.12,218.11,3.963]
[1737166155166,0.03,218.12,218.11,0.063]
[1737166155369,0.03,218.12,218.11,3.963]
[1737166156864,0.03,218.12,218.11,0.063]
[1737166157070,0.03,218.12,218.11,3.963]
[1737166161800,0.03,218.12,218.1,3.9]
[1737166169401,20.03,218.12,218.0,138.3]
[1737166169608,0.08472402,218.11,218.08,3.9]
[1737166170613,0.08472402,218.11,217.98,187.843]
[1737166170614,16.0476,218.1,217.98,187.843]
[1737166171125,16.0476,218.1,217.99,3.9]
[1737166173478,16.0476,218.1,217.99,11.67066722]
[1737166173684,4.585,218.1,218.08,0.063]
[1737166189420,0.03,218.11,218.08,0.063]
[1737166189636,0.09308213,218.09,218.08,0.063]
[1737166193520,4.67828213,218.09,218.08,0.063]
[1737166194020,4.67828213,218.09,218.08,3.963]
[1737166205046,0.09308213,218.09,218.08,3.963]
[1737166205209,0.09308213,218.09,218.08,11.04584749]
[1737166205406,0.09308213,218.09,218.08,11.73333407]
[1737166205632,0.09308213,218.09,218.08,3.963]
[1737166206806,4.67828213,218.09,218.08,3.963]
[1737166208335,4.67828213,218.09,218.08,0.063]
[1737166208534,4.67828213,218.09,218.08,3.963]
[1737166209324,4.5852,218.09,218.08,3.963]
[1737166209518,4.68070566,218.09,218.08,3.963]
[1737166210621,4.71070566,218.09,218.08,3.963]
[1737166216742,4.71070566,218.09,218.08,0.063]
[1737166216918,4.71070566,218.09,218.08,3.963]
[1737166221425,4.71070566,218.09,218.08,0.063]
[1737166229441,0.03,218.09,218.08,0.063]
[1737166229728,0.12456936,218.09,218.08,0.063]
[1737166231749,4.70976936,218.09,218.08,0.063]
[1737166235449,24.70976936,218.09,218.0,0.063]
[1737166235624,24.70976936,218.09,218.01,3.9]
[1737166235625,16.17286936,218.09,218.01,3.9]
[1737166236353,36.17286936,218.09,218.01,3.9]
[1737166237249,1.5447,218.08,218.01,3.9]
[1737166237434,20.0,218.06,218.0,0.063]
[1737166238841,0.4299679,218.05,218.0,3.963]
[1737166239631,16.052,218.04,218.0,3.963]
[1737166240428,16.052,218.04,218.0,0.063]
[1737166241454,4.5867,218.02,218.0,0.063]
[1737166243852,20.0,218.01,217.98,0.063]
[1737166244059,16.4834679,218.02,217.98,0.063]
[1737166244229,20.0,217.99,217.95,3.9]
[1737166246046,4.5875,217.98,217.95,3.9]
[1737166246446,4.5875,217.98,217.86,8.2728]
[1737166246447,16.0564,217.98,217.94,3.9]
[1737166249562,0.09762512,217.95,217.94,3.9]
[1737166254556,0.09762512,217.95,217.94,11.67095164]
[1737166254768,0.09762512,217.95,217.94,13.18215164]
[1737166255569,0.09762512,217.95,217.94,6.25230415]
[1737166256956,0.09762512,217.95,217.94,5.5642]
[1737166258554,0.09762512,217.95,217.94,5.6272]
[1737166261951,0.09762512,217.95,217.94,13.39816262]
[1737166269254,0.0808416,217.98,217.97,20.0]
[1737166269575,0.0808416,217.98,217.97,27.77067766]
[1737166269576,0.09880915,217.98,217.97,27.77067766]
[1737166272275,0.12880915,217.98,217.97,27.77067766]
[1737166272857,0.09289104,217.99,217.98,7.9697]
[1737166273079,0.09289104,217.99,217.98,15.05254749]
[1737166279386,0.09289104,217.99,217.98,64.53254749]
[1737166281168,0.09289104,217.99,217.98,65.22022715]
[1737166283698,0.12289104,217.99,217.98,65.22022715]
[1737166287496,0.08920703,218.01,218.0,20.0]
[1737166287799,0.08920703,218.01,218.0,27.77051956]
[1737166289384,0.03,218.09,218.0,245.93511956]
[1737166289589,0.08894445,218.08,218.07,7.08284749]
[1737166289790,0.08894445,218.08,218.07,11.67043523]
[1737166295123,0.08894445,218.08,218.07,4.58758774]
[1737166295304,0.08894445,218.08,218.07,11.67043523]
[1737166296623,0.11894445,218.08,218.07,11.67043523]
[1737166297615,0.11894445,218.08,218.07,149.97043523]
[1737166297816,0.11894445,218.08,218.07,149.28284749]
[1737166299830,0.11894445,218.08,218.07,142.2]
[1737166300049,0.11894445,218.08,218.07,149.28284749]
[1737166300505,0.11894445,218.08,218.07,142.2]
[1737166300706,0.11894445,218.08,218.07,149.28284749]
[1737166302144,0.11894445,218.08,218.07,151.11613449]
[1737166304347,0.11894445,218.08,218.07,237.24813449]
[1737166304511,0.12861002,218.09,218.08,7.08284749]
[1737166304714,0.12861002,218.09,218.08,7.77025557]
[1737166307050,1e-08,218.09,218.08,7.77025557]
[1737166308648,0.10211346,218.1,218.08,7.77025557]
[1737166308839,0.10211346,218.1,218.09,27.08284749]
[1737166309263,0.10211346,218.1,218.09,76.54284749]
[1737166309421,0.01000001,218.1,218.09,76.54284749]
[1737166309621,0.10552647,218.1,218.09,294.70744749]
[1737166310919,0.10552647,218.1,218.09,298.60744749]
[1737166314649,0.10552647,218.1,218.09,69.46]
[1737166314949,0.10552647,218.1,218.09,53.36]
[1737166315333,0.10552647,218.1,218.09,49.46]
[1737166315542,0.10552647,218.1,218.09,53.36]
[1737166315743,0.10552647,218.1,218.09,61.13046352]
[1737166316739,0.10552647,218.1,218.09,54.04761603]
[1737166317051,0.10552647,218.1,218.09,53.36]
[1737166317931,0.10552647,218.1,218.09,54.04762482]
[1737166318135,0.10552647,218.1,218.09,61.13047231]
[1737166318348,0.10552647,218.1,218.09,54.04762482]
[1737166318562,0.10552647,218.1,218.09,23.9]
[1737166319567,0.10552647,218.1,218.09,31.67044974]
[1737166320045,0.10552647,218.1,218.09,3.9]
[1737166320751,0.10552647,218.1,218.07,2.52087692]
[1737166321056,0.10552647,218.1,218.08,3.963]
[1737166322333,0.10552647,218.1,218.08,0.063]
[1737166322534,0.10552647,218.1,218.09,3.9]
[1737166324967,0.10552647,218.1,218.09,169.28284749]
[1737166327980,0.10552647,218.1,218.09,183.03284749]
[1737166328263,0.10552647,218.1,218.09,169.28284749]
[1737166329557,0.09256133,218.1,218.09,169.28284749]
[1737166330446,0.09256133,218.1,218.09,249.14744749]
[1737166330650,0.09256133,218.1,218.09,242.0646]
[1737166330850,0.09256133,218.1,218.09,249.14744749]
[1737166331059,0.11519786,218.11,218.09,249.14744749]
[1737166331252,0.11519786,218.11,218.1,7.77024576]
[1737166335972,0.11519786,218.11,218.1,0.68739827]
[1737166336171,0.11519786,218.11,218.1,7.77024576]
[1737166336472,0.11519786,218.11,218.1,225.93484576]
[1737166336676,0.11519786,218.11,218.1,225.24744749]
[1737166337489,0.11519786,218.11,218.1,218.1646]
[1737166337873,0.11519786,218.11,218.1,225.24744749]
[1737166339783,0.11519786,218.11,218.1,218.1646]
[1737166340163,0.11519786,218.11,218.1,225.24744749]
[1737166343874,0.11519786,218.11,218.1,231.11951611]
[1737166344087,0.08459251,218.13,218.12,20.0]
[1737166344264,0.08459251,218.13,218.12,280.13815153]
[1737166344467,0.08983261,218.14,218.13,5.87206862]
[1737166344670,0.08983261,218.14,218.13,41.28630607]
[1737166345460,0.08983261,218.14,218.13,41.97354784]
[1737166346799,0.08983261,218.14,218.13,0.68724177]
[1737166346990,0.08983261,218.14,218.13,36.10147922]
[1737166348482,0.08983261,218.14,218.13,254.26607922]
[1737166348663,0.08983261,218.14,218.13,253.57883745]
[1737166349390,0.03,218.19,218.16,20.0]
[1737166349690,0.09818351,218.17,218.16,20.68729701]
[1737166351101,0.09818351,218.17,218.16,27.7701445]
[1737166354599,0.09818351,218.17,218.16,245.9347445]
[1737166354801,0.09818351,218.17,218.16,245.24744749]
[1737166357602,0.12818351,218.17,218.16,245.24744749]
[1737166361987,0.12818351,218.17,218.16,249.14744749]
[1737166364884,0.12818351,218.17,218.16,242.0646]
[1737166365078,0.12818351,218.17,218.16,222.0646]
[1737166365302,0.12818351,218.17,218.16,218.1646]
[1737166365507,0.12818351,218.17,218.16,222.0646]
[1737166366496,0.12818351,218.17,218.16,3.9]
[1737166368730,6.33028351,218.17,218.16,3.9]
[1737166369346,6.2321,218.17,218.16,3.9]
[1737166369705,6.32454936,218.17,218.16,3.9]
[1737166370497,1.74104936,218.17,218.16,3.9]
[1737166371318,1.74104936,218.17,218.13,49.523]
[1737166371527,1.74104936,218.17,218.14,3.9]
[1737166374432,1.74104936,218.17,218.14,10.98284749]
[1737166374739,6.32454936,218.17,218.13,49.523]
[1737166374929,12.50174936,218.17,218.14,3.9]
[1737166380048,6.32454936,218.17,218.14,10.98284749]
[1737166380546,6.32454936,218.17,218.14,3.9]
[1737166385945,0.12244936,218.17,218.16,7.08284749]
[1737166386129,0.12244936,218.17,218.16,7.7702347]
[1737166387725,0.12244936,218.17,218.16,225.9348347]
[1737166387926,0.12244936,218.17,218.16,218.1646]
[1737166388146,0.12244936,218.17,218.16,225.24744749]
[1737166388351,0.12244936,218.17,218.16,218.1646]
[1737166388544,0.12244936,218.17,218.16,225.24744749]
[1737166389440,0.03,218.17,218.16,225.24744749]
[1737166389756,0.12039619,218.17,218.16,225.24744749]
[1737166390755,0.12039619,218.17,218.16,3.9]
[1737166390934,4.70389619,218.17,218.13,0.063]
[1737166391259,4.70389619,218.17,218.14,3.9]
[1737166399865,0.12039619,218.17,218.14,10.98284749]
[1737166400066,0.12039619,218.17,218.16,7.08284749]
[1737166400265,0.12039619,218.17,218.16,7.77026522]
[1737166402264,0.12039619,218.17,218.13,0.063]
[1737166402563,0.12039619,218.17,218.16,7.08284749]
[1737166402865,0.12039619,218.17,218.15,7.08284749]
[1737166403040,4.70399619,218.17,218.16,3.9]
[1737166404373,4.70399619,218.17,218.13,7.14584749]
[1737166404673,4.70399619,218.17,218.16,3.9]
[1737166404859,0.12039619,218.17,218.16,3.9]
[1737166409351,0.03,218.17,218.16,3.9]
[1737166409560,0.12363448,218.17,218.16,3.9]
[1737166427100,0.12363448,218.17,218.13,7.14584749]
[1737166427287,0.12363448,218.17,218.16,3.9]
[1737166429598,0.11844071,218.17,218.16,3.9]
[1737166431214,0.11844071,218.17,218.13,0.063]
[1737166431509,0.11844071,218.17,218.16,3.9]
[1737166437213,0.11844071,218.17,218.16,10.98284749]
[1737166437782,0.11844071,218.17,218.16,149.28284749]
[1737166449323,0.03,218.17,218.16,149.28284749]
[1737166449707,0.11705492,218.17,218.16,149.28284749]
[1737166455640,0.11705492,218.17,218.16,142.2]
[1737166456430,0.11705492,218.17,218.16,3.9]
[1737166457126,0.11705492,218.17,218.13,226.44584749]
[1737166457425,0.11705492,218.17,218.16,3.9]
[1737166459827,0.11705492,218.17,218.13,81.063]
[1737166460009,0.11705492,218.17,218.16,3.9]
[1737166469335,0.03,218.17,218.16,3.9]
[1737166469707,0.11368095,218.17,218.16,3.9]
[1737166488333,0.11368095,218.17,218.16,10.98284749]
[1737166489355,0.03,218.17,218.16,91.98284749]
[1737166489724,0.11794199,218.17,218.16,91.98284749]
[1737166495171,0.11794199,218.17,218.16,230.28284749]
[1737166498270,0.11970996,218.19,218.16,230.28284749]
[1737166498564,0.11970996,218.19,218.18,259.28028019]
[1737166498955,0.11970996,218.19,218.18,252.1974327]
[1737166499154,0.11970996,218.19,218.18,259.28028019]
[1737166500457,0.11970996,218.19,218.18,252.1974327]
[1737166500680,0.11970996,218.19,218.18,259.28028019]
[1737166507662,0.11970996,218.19,218.18,252.1974327]
[1737166507865,0.11970996,218.19,218.18,256.0974327]
[1737166509167,0.11970996,218.19,218.18,263.18028019]
[1737166509473,0.03,218.19,218.18,263.18028019]
[1737166509768,0.11637436,218.19,218.18,263.18028019]
[1737166511469,0.11637436,218.19,218.18,259.28028019]
[1737166511670,0.11637436,218.19,218.18,263.18028019]
[1737166512877,0.11637436,218.19,218.18,263.24328019]
[1737166515773,0.09164287,218.23,218.18,263.24328019]
[1737166515979,0.03,218.33,218.23,226.38284749]
[1737166516673,4.6107,218.31,218.23,226.38284749]
[1737166516863,0.03,218.31,218.23,226.38284749]
[1737166517571,0.03,218.31,218.23,219.3]
[1737166517759,0.03,218.31,218.23,81.0]
[1737166517960,4.66754072,218.27,218.23,81.0]
[1737166519780,0.08594072,218.27,218.23,81.0]
[1737166519977,0.08594072,218.27,218.23,88.77003999]
[1737166522185,0.08594072,218.27,218.23,227.07003999]
[1737166522384,0.08594072,218.27,218.23,226.38284749]
[1737166523182,0.08594072,218.27,218.23,219.3]
[1737166523562,4.66734072,218.27,218.23,219.3]
[1737166523869,4.67706585,218.24,218.23,223.2]
[1737166524866,0.09496585,218.24,218.23,223.2]
[1737166526199,0.12496585,218.24,218.23,223.2]
[1737166527781,4.70706585,218.24,218.23,3.9]
[1737166528276,4.70706585,218.24,218.18,81.063]
[1737166528584,4.70706585,218.24,218.19,3.9]
[1737166528784,1.6018,218.23,218.18,81.063]
[1737166528985,1.6018,218.23,218.19,3.9]
[1737166529666,4.67427375,218.2,218.19,3.9]
[1737166532291,4.67427375,218.2,218.18,0.063]
[1737166532492,4.67427375,218.2,218.19,3.9]
[1737166538615,4.67427375,218.2,218.19,3.963]
[1737166549328,1.6318,218.23,218.19,3.963]
[1737166549616,0.10063792,218.2,218.19,3.963]
[1737166550519,4.68353792,218.2,218.19,3.963]
[1737166554228,0.10063792,218.2,218.19,3.963]
[1737166555630,4.68353792,218.2,218.19,3.963]
[1737166560331,4.68353792,218.2,218.19,0.063]
[1737166561307,4.68353792,218.2,218.13,0.063]
[1737166561308,20.0,218.17,218.13,0.063]
[1737166561509,22.0514679,218.16,218.13,0.063]
[1737166562433,4.584,218.15,218.13,0.063]
[1737166562637,0.4299679,218.14,218.13,0.063]
[1737166564414,5.0139679,218.15,218.13,0.063]
[1737166565229,4.584,218.15,218.13,0.063]
[1737166566931,4.5831,218.19,218.13,0.063]
[1737166571339,4.5829,218.2,218.13,0.063]
[1737166572941,16.0402,218.2,218.13,0.063]
[1737166574442,16.0702,218.2,218.13,0.063]
[1737166587861,4.6129,218.2,218.13,0.063]
[1737166589160,0.03,218.2,218.13,0.063]
[1737166590441,0.03,218.2,218.13,81.063]
[1737166606970,0.4599679,218.2,218.13,81.063]
[1737166607153,20.4599679,218.2,218.13,81.063]
[1737166607470,20.0,218.19,218.13,3.963]
[1737166607644,0.4299679,218.18,218.13,3.963]
[1737166608576,16.0424,218.17,218.13,3.963]
[1737166608871,0.4299679,218.16,218.13,3.963]
[1737166609077,0.4299679,218.16,218.13,0.063]
[1737166610282,4.584,218.15,218.13,0.063]
[1737166610469,0.4299679,218.14,218.13,0.063]
[1737166612276,4.5842,218.14,218.13,0.063]
[1737166612979,0.4299679,218.16,218.13,0.063]
[1737166613179,4.584,218.15,218.13,0.063]
[1737166613382,0.4299679,218.14,218.13,0.063]
[1737166615382,20.0,218.14,218.13,0.0001]
[1737166615583,20.0,218.13,218.1,0.063]
[1737166615890,0.4299679,218.12,218.1,0.063]
[1737166617158,4.5848,218.11,218.1,0.063]
[1737166619475,4.5848,218.11,218.1,0.0001]
[1737166620579,4.5848,218.11,218.09,0.0001]
[1737166620580,20.0,218.1,218.09,0.0001]
[1737166620783,0.4299679,218.1,218.09,0.0001]
[1737166621589,5.0149679,218.1,218.09,0.0001]
[1737166622069,5.0149679,218.1,218.08,0.0001]
[1737166622256,20.0,218.08,217.99,0.063]
[1737166622458,20.0,218.05,217.99,0.063]
[1737166622686,0.4299679,218.04,217.99,0.063]
[1737166622889,0.4299679,218.04,217.99,3.963]
[1737166623898,4.5865,218.03,217.99,3.963]
[1737166624472,4.5865,218.03,217.99,0.063]
[1737166624796,16.0528,218.03,218.0,3.9]
[1737166629211,4.5865,218.03,218.0,3.9]
[1737166629717,4.5848,218.11,218.01,88.8966]
[1737166629881,20.0,218.1,218.01,88.8966]
[1737166630081,5.0151679,218.09,218.01,82.5707]
[1737166631019,16.4782679,218.09,218.01,82.5707]
[1737166631304,16.4782679,218.09,218.01,81.0]
[1737166632910,16.0483,218.09,218.01,81.0]
[1737166634601,4.5852,218.09,218.01,81.0]
[1737166635316,0.4299679,218.08,218.02,3.9]
[1737166636605,16.4782679,218.09,218.02,3.9]
[1737166636988,16.4782679,218.09,218.03,3.9]
[1737166638205,16.4782679,218.09,218.01,0.063]
[1737166638206,20.0,218.06,218.01,0.063]
[1737166638504,20.4299679,218.05,218.01,0.063]
[1737166640106,4.5863,218.04,218.01,0.063]
[1737166640386,20.0,218.0,217.94,0.063]
[1737166640590,0.4299679,217.99,217.94,0.063]
[1737166641589,20.0,217.96,217.94,0.063]
[1737166641807,0.4299679,217.97,217.94,0.063]
[1737166642722,4.5879,217.96,217.94,0.063]
[1737166647418,11.4689,217.98,217.94,0.063]
[1737166649919,11.8988679,217.98,217.94,0.063]
[1737166650124,11.4689,217.98,217.94,0.063]
[1737166652425,16.0564,217.98,217.95,3.9]
[1737166654151,20.0,217.98,217.95,3.9]
[1737166658529,4.5877,217.97,217.95,3.9]
[1737166668545,0.03,217.98,217.96,3.9]
[1737166669772,0.4599679,217.98,217.96,3.9]
[1737166670562,4.5877,217.97,217.94,3.963]
[1737166670754,0.4299679,217.96,217.94,3.963]
[1737166671151,5.0176679,217.97,217.94,3.963]
[1737166671352,5.0176679,217.97,217.95,0.063]
[1737166679382,5.0176679,217.97,217.94,0.063]
[1737166679580,20.0,217.95,217.94,0.063]
[1737166679781,20.4299679,217.95,217.94,0.063]
[1737166680584,20.0,217.95,217.94,0.063]
[1737166682483,20.0,217.95,217.94,0.0001]
[1737166683178,24.5882,217.95,217.94,0.0001]
[1737166683580,36.4886679,217.95,217.91,0.0001]
[1737166689293,16.4886679,217.95,217.91,0.0001]
[1737166689474,16.0587,217.95,217.91,0.0001]
[1737166691470,0.4299679,217.96,217.91,0.0001]
[1737166692796,20.4299679,217.96,217.91,0.0001]
[1737166694971,3.2117,217.95,217.91,0.0001]
[1737166697500,23.2121,217.92,217.91,0.0001]
[1737166700087,3.2121,217.92,217.91,0.0001]
[1737166701078,2.2942,217.94,217.91,0.0001]
[1737166705899,0.4299679,217.93,217.91,0.0001]
[1737166706198,20.0,217.92,217.91,0.0001]
[1737166707603,22.2944,217.92,217.91,0.0001]
[1737166712600,20.0,217.91,217.88,0.0001]
[1737166712808,0.4299679,217.9,217.88,0.0001]
[1737166713008,2.2947,217.89,217.88,0.0001]
[1737166713198,20.0,217.87,217.8,3.9]
[1737166713508,20.4299679,217.86,217.79,0.063]
[1737166714310,20.4299679,217.86,217.79,0.0001]
[1737166714311,20.0,217.84,217.79,0.0001]
[1737166714605,0.4299679,217.85,217.79,0.0001]
[1737166714811,0.4299679,217.85,217.79,3.9001]
[1737166715487,8.0333,217.84,217.79,3.9001]
[1737166715689,0.4299679,217.83,217.79,3.9001]
[1737166716211,0.4299679,217.83,217.73,0.063]
[1737166717887,8.034,217.82,217.73,0.063]
[1737166718292,0.4299679,217.81,217.73,0.063]
[1737166720316,20.4299679,217.81,217.73,0.063]
[1737166720615,8.0348,217.8,217.73,0.063]
[1737166720795,0.4299679,217.79,217.73,0.063]
[1737166722319,8.0355,217.78,217.73,0.063]
[1737166722506,0.4299679,217.77,217.73,0.063]
[1737166723518,2.2961,217.76,217.73,0.063]
[1737166724916,2.2955,217.81,217.73,0.063]
[1737166725414,8.4643679,217.81,217.73,0.063]
[1737166727006,8.0344,217.81,217.73,0.063]
[1737166727207,8.0344,217.81,217.73,7.14584749]
[1737166728721,20.0,217.84,217.73,7.14584749]
[1737166729023,20.0,217.82,217.73,7.14584749]
[1737166729425,20.0,217.82,217.73,0.063]
[1737166729608,8.0329,217.85,217.73,7.14584749]
[1737166729808,8.0329,217.85,217.74,7.08284749]
[1737166730530,8.0329,217.85,217.73,7.14584749]
[1737166730736,0.4299679,217.84,217.73,7.14584749]
[1737166731034,5.7378,217.85,217.74,7.08284749]
[1737166732732,8.0329,217.85,217.74,7.08284749]
[1737166732914,8.0629,217.85,217.74,7.08284749]
[1737166734736,5.7678,217.85,217.74,7.08284749]
[1737166736235,5.7678,217.85,217.75,7.08284749]
[1737166744716,5.7678,217.85,217.75,7.14584749]
[1737166746318,5.7678,217.85,217.75,0.063]
[1737166746520,5.7678,217.85,217.75,7.14584749]
[1737166749139,5.7678,217.85,217.75,0.063]
[1737166750844,5.7678,217.85,217.75,7.14584749]
[1737166751049,0.03,217.85,217.76,7.08284749]
[1737166751251,0.03,217.85,217.77,7.08284749]
[1737166752444,0.03,217.85,217.75,20.063]
[1737166752651,0.03,217.85,217.77,7.08284749]
[1737166757542,0.03,217.85,217.78,7.08284749]
[1737166760062,0.03,217.85,217.75,219.363]
[1737166760362,0.03,217.85,217.77,7.08284749]
[1737166761668,0.03,217.85,217.77,88.08284749]
[1737166761845,0.03,217.85,217.78,7.08284749]
[1737166766677,0.03,217.85,217.79,7.08284749]
[1737166768677,0.03,217.85,217.81,7.08284749]
[1737166770290,0.03,217.85,217.77,81.063]
[1737166770575,0.03,217.85,217.79,7.08284749]
[1737166774087,0.03,217.85,217.77,81.063]
[1737166775468,0.03,217.85,217.78,3.9]
[1737166777496,0.03,217.85,217.77,0.063]
[1737166777704,0.4299679,217.84,217.78,3.9]
[1737166777883,0.4299679,217.84,217.77,0.063]
[1737166778079,0.4299679,217.84,217.79,3.9]
[1737166778286,20.0,217.83,217.79,3.9]
[1737166778697,5.7385,217.83,217.79,3.9]